[Event "Open Nuevo Centro. Jornada 1"]
[Site "Chess.com"]
[Date "2020.06.19"]
[Round "8"]
[White "Campos Gambuti, Luis Mar�a"]
[Black "Garcia Trobat, Francisco"]
[Result "1-0"]
[WhiteElo "2345"]
[BlackElo "2220"]
[TimeControl "180+2"]
[EndTime "12:04:54 PDT"]
[Termination "Victoria de Tangalangafacv por tiempo"]

1. d4 {[%clk 0:03:01.9]} 1... Nf6 {[%clk 0:02:59.8]} 2. Nf3 {[%clk 0:03:02.8]}
2... e6 {[%clk 0:02:59.6]} 3. c4 {[%clk 0:03:02.9]} 3... Bb4+ {[%clk 0:03:00.2]}
4. Nbd2 {[%clk 0:03:00.7]} 4... b6 {[%clk 0:02:58.1]} 5. a3 {[%clk 0:02:59.7]}
5... Bxd2+ {[%clk 0:02:57.7]} 6. Bxd2 {[%clk 0:03:00.7]} 6... Bb7 {[%clk
0:02:58.3]} 7. Bg5 {[%clk 0:02:58.7]} 7... h6 {[%clk 0:02:53.1]} 8. Bh4 {[%clk
0:02:58.7]} 8... d6 {[%clk 0:02:52.9]} 9. e3 {[%clk 0:02:59]} 9... g5 {[%clk
0:02:48.8]} 10. Bg3 {[%clk 0:02:59]} 10... Ne4 {[%clk 0:02:49.7]} 11. Nd2 {[%clk
0:02:59.6]} 11... Nxg3 {[%clk 0:02:44.6]} 12. hxg3 {[%clk 0:02:59.7]} 12... Nd7
{[%clk 0:02:43.5]} 13. Nf3 {[%clk 0:02:43.1]} 13... Qe7 {[%clk 0:02:28.5]} 14.
Qa4 {[%clk 0:02:41.6]} 14... Kf8 {[%clk 0:02:20.7]} 15. Qc2 {[%clk 0:02:27.5]}
15... Kg7 {[%clk 0:02:19.5]} 16. Be2 {[%clk 0:02:24.5]} 16... Nf6 {[%clk
0:02:03.2]} 17. Bd3 {[%clk 0:02:15.4]} 17... c5 {[%clk 0:01:56.1]} 18. O-O
{[%clk 0:02:03.7]} 18... Bxf3 {[%clk 0:01:47]} 19. gxf3 {[%clk 0:02:03.5]} 19...
h5 {[%clk 0:01:36.1]} 20. f4 {[%clk 0:01:53.1]} 20... g4 {[%clk 0:01:27.2]} 21.
Be4 {[%clk 0:01:49.3]} 21... Rac8 {[%clk 0:01:12.5]} 22. d5 {[%clk 0:01:43.2]}
22... exd5 {[%clk 0:01:08.5]} 23. Bxd5 {[%clk 0:01:43.6]} 23... Nxd5 {[%clk
0:00:37.6]} 24. cxd5 {[%clk 0:01:43.1]} 24... Rhe8 {[%clk 0:00:38.6]} 25. Rac1
{[%clk 0:01:21.1]} 25... Qe4 {[%clk 0:00:34.5]} 26. Qxe4 {[%clk 0:01:17]} 26...
Rxe4 {[%clk 0:00:34.4]} 27. b3 {[%clk 0:01:12.6]} 27... b5 {[%clk 0:00:29.5]}
28. Rc2 {[%clk 0:01:10.3]} 28... a5 {[%clk 0:00:27.6]} 29. Rfc1 {[%clk
0:01:08.7]} 29... a4 {[%clk 0:00:21.1]} 30. b4 {[%clk 0:01:07.6]} 30... c4
{[%clk 0:00:22]} 31. Rc3 {[%clk 0:01:06.3]} 31... Kf6 {[%clk 0:00:21.9]} 32. Kf1
{[%clk 0:01:06.9]} 32... Kf5 {[%clk 0:00:22.5]} 33. Ke2 {[%clk 0:01:07.6]} 33...
h4 {[%clk 0:00:23.6]} 34. gxh4 {[%clk 0:01:05.6]} 34... Rh8 {[%clk 0:00:23.3]}
35. Rh1 {[%clk 0:01:07]} 35... f6 {[%clk 0:00:20.4]} 36. Rcc1 {[%clk 0:01:02.3]}
36... Re7 {[%clk 0:00:20.5]} 37. Rh2 {[%clk 0:00:55.4]} 37... Ke4 {[%clk
0:00:17.9]} 38. Rd1 {[%clk 0:00:55.6]} 38... c3 {[%clk 0:00:18.6]} 39. Rd4+
{[%clk 0:00:53.3]} 39... Kf5 {[%clk 0:00:19.8]} 40. Kd3 {[%clk 0:00:53.7]} 40...
Rc7 {[%clk 0:00:16.2]} 41. Kc2 {[%clk 0:00:54.5]} 41... g3 {[%clk 0:00:15.6]}
42. fxg3 {[%clk 0:00:51.8]} 42... Kg4 {[%clk 0:00:17.1]} 43. Rd1 {[%clk
0:00:42.5]} 43... Kxg3 {[%clk 0:00:09.9]} 44. Rdh1 {[%clk 0:00:41.6]} 44... Kf3
{[%clk 0:00:10.8]} 45. Rh3+ {[%clk 0:00:38.6]} 45... Ke4 {[%clk 0:00:10.3]} 46.
Rd1 {[%clk 0:00:38.1]} 46... Rc4 {[%clk 0:00:08.4]} 47. h5 {[%clk 0:00:38.2]}
47... Rh6 {[%clk 0:00:08.5]} 48. Rd3 {[%clk 0:00:37.7]} 48... Kf5 {[%clk
0:00:08.7]} 49. Rxc3 {[%clk 0:00:38.1]} 49... Rxc3+ {[%clk 0:00:06.6]} 50. Kxc3
{[%clk 0:00:38.5]} 50... Ke4 {[%clk 0:00:08.1]} 51. Kd2 {[%clk 0:00:34.1]} 51...
f5 {[%clk 0:00:09.6]} 52. Ke2 {[%clk 0:00:32.6]} 52... Kxd5 {[%clk 0:00:11]} 53.
Kd3 {[%clk 0:00:34]} 53... Kc6 {[%clk 0:00:11.1]} 54. Kd4 {[%clk 0:00:34.3]}
54... Kd7 {[%clk 0:00:09.3]} 55. Kd5 {[%clk 0:00:34]} 55... Re6 {[%clk 0:00:09]}
56. h6 {[%clk 0:00:33.8]} 56... Re8 {[%clk 0:00:07.3]} 57. h7 {[%clk 0:00:34.6]}
57... Rh8 {[%clk 0:00:07.9]} 58. Rh6 {[%clk 0:00:31.8]} 1

[Event "Open Nuevo Centro. Jornada 1"]
[Site "Chess.com"]
[Date "2020.06.19"]
[Round "8"]
[White "Bendayan Claros, Aaron"]
[Black "Blanco Solaz, Ram�n"]
[Result "1-0"]
[WhiteElo "1778"]
[BlackElo "1963"]
[TimeControl "180+2"]
[EndTime "12:04:54 PDT"]
[Termination "Victoria de Cuajada_Zero por abandono"]

1. d4 {[%clk 0:03:01.9]} 1... Nf6 {[%clk 0:02:59.2]} 2. Bg5 {[%clk 0:03:01.9]}
2... Ne4 {[%clk 0:02:58.3]} 3. Bf4 {[%clk 0:03:02.5]} 3... c5 {[%clk 0:02:58.6]}
4. f3 {[%clk 0:03:00.9]} 4... Qa5+ {[%clk 0:02:59.7]} 5. c3 {[%clk 0:03:01.5]}
5... Nf6 {[%clk 0:02:59.1]} 6. Nd2 {[%clk 0:03:02.6]} 6... cxd4 {[%clk
0:02:52.7]} 7. Nb3 {[%clk 0:03:03.4]} 7... Qf5 {[%clk 0:02:44.9]} 8. Qxd4 {[%clk
0:02:57.3]} 8... Nc6 {[%clk 0:02:42.2]} 9. Qd2 {[%clk 0:02:56.6]} 9... e5 {[%clk
0:02:42.4]} 10. Bg3 {[%clk 0:02:51.5]} 10... d5 {[%clk 0:02:42.8]} 11. e3 {[%clk
0:02:46.4]} 11... a5 {[%clk 0:02:40.7]} 12. Bd3 {[%clk 0:02:45.8]} 12... Qe6
{[%clk 0:02:38.7]} 13. Ne2 {[%clk 0:02:40.8]} 13... a4 {[%clk 0:02:39.5]} 14.
Nbc1 {[%clk 0:02:39.8]} 14... Bc5 {[%clk 0:02:40.8]} 15. Bf2 {[%clk 0:02:39]}
15... O-O {[%clk 0:02:41.3]} 16. O-O {[%clk 0:02:37.8]} 16... b6 {[%clk
0:02:36.2]} 17. Bc2 {[%clk 0:02:35.3]} 17... Ba6 {[%clk 0:02:36.5]} 18. Nd3
{[%clk 0:02:35.3]} 18... Bd6 {[%clk 0:02:30.9]} 19. Rfe1 {[%clk 0:02:30.2]}
19... b5 {[%clk 0:02:20.3]} 20. Rad1 {[%clk 0:02:26.3]} 20... Na5 {[%clk
0:02:19.6]} 21. a3 {[%clk 0:02:22.7]} 21... Bb7 {[%clk 0:02:16.5]} 22. Nb4
{[%clk 0:02:13.5]} 22... Nc4 {[%clk 0:02:14.2]} 23. Qc1 {[%clk 0:02:13.6]} 23...
Rac8 {[%clk 0:02:14.2]} 24. Ng3 {[%clk 0:02:04.8]} 24... g6 {[%clk 0:02:09.6]}
25. Qb1 {[%clk 0:01:56.1]} 25... Rfd8 {[%clk 0:02:07.5]} 26. Bd3 {[%clk
0:01:14.7]} 26... Kg7 {[%clk 0:02:00.9]} 27. Bxc4 {[%clk 0:01:14.1]} 27... Rxc4
{[%clk 0:01:50.2]} 28. Qd3 {[%clk 0:01:05.5]} 28... h5 {[%clk 0:01:45.8]} 29.
Qe2 {[%clk 0:00:54.3]} 29... Bb8 {[%clk 0:01:44.8]} 30. Nf1 {[%clk 0:00:50.9]}
30... Rcc8 {[%clk 0:01:27.3]} 31. Qxb5 {[%clk 0:00:49.2]} 31... Rc7 {[%clk
0:01:00]} 32. Qxa4 {[%clk 0:00:49.3]} 32... Nd7 {[%clk 0:00:55.6]} 33. Qb3
{[%clk 0:00:37.8]} 33... Nc5 {[%clk 0:00:55.4]} 34. Qc2 {[%clk 0:00:38]} 34...
Ba7 {[%clk 0:00:54.6]} 35. Qe2 {[%clk 0:00:33.1]} 35... f5 {[%clk 0:00:51.5]}
36. Nd2 {[%clk 0:00:27.2]} 36... Bb6 {[%clk 0:00:50.7]} 37. c4 {[%clk
0:00:18.7]} 37... dxc4 {[%clk 0:00:41.4]} 38. Nxc4 {[%clk 0:00:19.2]} 38... Rxd1
{[%clk 0:00:38.2]} 39. Rxd1 {[%clk 0:00:19.9]} 39... Ba7 {[%clk 0:00:39.7]} 40.
Na5 {[%clk 0:00:14.3]} 40... Bc8 {[%clk 0:00:32.1]} 41. Nd5 {[%clk 0:00:14.5]}
41... Rd7 {[%clk 0:00:31.3]} 42. e4 {[%clk 0:00:15.1]} 42... Ba6 {[%clk
0:00:31.6]} 43. Qc2 {[%clk 0:00:09.3]} 43... fxe4 {[%clk 0:00:26.1]} 44. fxe4
{[%clk 0:00:09.3]} 44... Qd6 {[%clk 0:00:17.9]} 45. b4 {[%clk 0:00:08.5]} 45...
Ne6 {[%clk 0:00:14.2]} 46. Bxa7 {[%clk 0:00:08.7]} 46... Rxa7 {[%clk 0:00:15.8]}
47. Qc6 {[%clk 0:00:09.2]} 47... Qd8 {[%clk 0:00:15.9]} 48. Qxe6 {[%clk
0:00:09.1]} 48... Be2 {[%clk 0:00:13.5]} 49. Nc6 {[%clk 0:00:07.3]} 49... Qf8
{[%clk 0:00:09.8]} 50. Qxe5+ {[%clk 0:00:06.8]} 50... Kh7 {[%clk 0:00:10.5]} 51.
Nxa7 {[%clk 0:00:04.8]} 51... Bxd1 {[%clk 0:00:11.2]} 52. Qe7+ {[%clk 0:00:05]}
52... Qxe7 {[%clk 0:00:11]} 53. Nxe7 {[%clk 0:00:06.3]} 53... Kh6 {[%clk
0:00:12.9]} 54. b5 {[%clk 0:00:06.4]} 54... Kg5 {[%clk 0:00:14.4]} 55. b6 {[%clk
0:00:07.1]} 1

[Event "Open Nuevo Centro. Jornada 1"]
[Site "Chess.com"]
[Date "2020.06.19"]
[Round "8"]
[White "Montesinos Diaz, Luis"]
[Black "Chernikov, Vladimir"]
[Result "0-1"]
[WhiteElo "1903"]
[BlackElo "2247"]
[TimeControl "180+2"]
[EndTime "12:04:57 PDT"]
[Termination "Victoria de isla88 por abandono"]

1. d4 {[%clk 0:02:51.9]} 1... Nf6 {[%clk 0:02:57.5]} 2. Nf3 {[%clk 0:02:52.8]}
2... c5 {[%clk 0:02:58.2]} 3. e3 {[%clk 0:02:50.9]} 3... e6 {[%clk 0:02:58.3]}
4. b3 {[%clk 0:02:51.5]} 4... b6 {[%clk 0:02:58.6]} 5. Bb2 {[%clk 0:02:52.4]}
5... Be7 {[%clk 0:02:59.7]} 6. Bd3 {[%clk 0:02:52.3]} 6... Bb7 {[%clk
0:03:01.2]} 7. Nbd2 {[%clk 0:02:53.3]} 7... d6 {[%clk 0:03:02.5]} 8. O-O {[%clk
0:02:52.7]} 8... Nbd7 {[%clk 0:03:03.5]} 9. c4 {[%clk 0:02:52.1]} 9... h6 {[%clk
0:03:04.6]} 10. Qe2 {[%clk 0:02:47.4]} 10... Qc7 {[%clk 0:03:04.6]} 11. Rfe1
{[%clk 0:02:43.2]} 11... O-O {[%clk 0:03:04.9]} 12. e4 {[%clk 0:02:38.6]} 12...
cxd4 {[%clk 0:03:05.2]} 13. Nxd4 {[%clk 0:02:33.9]} 13... a6 {[%clk 0:03:06.1]}
14. Kh1 {[%clk 0:02:26.3]} 14... Rfe8 {[%clk 0:03:02.8]} 15. f4 {[%clk
0:02:26.7]} 15... Nc5 {[%clk 0:02:59.9]} 16. Bc2 {[%clk 0:02:25.9]} 16... Rad8
{[%clk 0:02:57.4]} 17. b4 {[%clk 0:02:26.3]} 17... Ncd7 {[%clk 0:02:55.6]} 18.
a3 {[%clk 0:02:27]} 18... Qb8 {[%clk 0:02:51.4]} 19. e5 {[%clk 0:02:24.3]} 19...
dxe5 {[%clk 0:02:38.7]} 20. fxe5 {[%clk 0:02:26.2]} 20... Nh7 {[%clk 0:02:39.1]}
21. N2f3 {[%clk 0:01:59.3]} 21... Qa8 {[%clk 0:02:33.5]} 22. Rad1 {[%clk
0:01:56.1]} 22... Ndf8 {[%clk 0:02:26.1]} 23. Rf1 {[%clk 0:01:41.6]} 23... Ng5
{[%clk 0:02:12.5]} 24. Nxg5 {[%clk 0:01:41.8]} 24... Bxg5 {[%clk 0:02:14.4]} 25.
Qf2 {[%clk 0:01:39.4]} 25... Re7 {[%clk 0:02:04.5]} 26. Nf3 {[%clk 0:01:34.6]}
26... Rxd1 {[%clk 0:01:56.3]} 27. Rxd1 {[%clk 0:01:36.5]} 27... Rd7 {[%clk
0:01:45.6]} 28. Rxd7 {[%clk 0:01:33.1]} 28... Nxd7 {[%clk 0:01:47.5]} 29. Nxg5
{[%clk 0:01:34.2]} 29... hxg5 {[%clk 0:01:47.6]} 30. Kg1 {[%clk 0:01:31.3]}
30... Be4 {[%clk 0:01:44.8]} 31. Bd4 {[%clk 0:01:11.6]} 31... a5 {[%clk
0:01:30.8]} 32. b5 {[%clk 0:01:11.4]} 32... Qb7 {[%clk 0:01:01.4]} 33. h3 {[%clk
0:01:07]} 33... g6 {[%clk 0:00:54.1]} 34. a4 {[%clk 0:01:01.2]} 34... Bxc2
{[%clk 0:00:49.5]} 35. Qxc2 {[%clk 0:01:00.3]} 35... Qc7 {[%clk 0:00:49.7]} 36.
Qd3 {[%clk 0:00:54.3]} 36... Kg7 {[%clk 0:00:40.2]} 37. Qe2 {[%clk 0:00:30.9]}
37... Nc5 {[%clk 0:00:39.9]} 38. Qe3 {[%clk 0:00:27]} 38... Nxa4 {[%clk
0:00:37.8]} 39. Qxg5 {[%clk 0:00:25.9]} 39... Qxc4 {[%clk 0:00:31.1]} 40. Qf6+
{[%clk 0:00:26.3]} 40... Kg8 {[%clk 0:00:32.3]} 41. Be3 {[%clk 0:00:16.6]} 41...
Kf8 {[%clk 0:00:14.7]} 42. Qd8+ {[%clk 0:00:08.3]} 42... Kg7 {[%clk 0:00:15.9]}
43. Qf6+ {[%clk 0:00:06]} 43... Kf8 {[%clk 0:00:17]} 44. Bh6+ {[%clk 0:00:05.3]}
44... Ke8 {[%clk 0:00:18.1]} 45. Qh8+ {[%clk 0:00:05.8]} 45... Kd7 {[%clk
0:00:18.9]} 46. Qf6 {[%clk 0:00:06.6]} 46... Qc5+ {[%clk 0:00:19.7]} 47. Kh2
{[%clk 0:00:07.2]} 47... Qe7 {[%clk 0:00:20.6]} 48. Qf4 {[%clk 0:00:07]} 48...
Nc5 {[%clk 0:00:21.3]} 49. Qd2+ {[%clk 0:00:07.6]} 49... Kc7 {[%clk 0:00:22.3]}
50. Bg5 {[%clk 0:00:08.3]} 50... Qd7 {[%clk 0:00:23]} 51. Qe3 {[%clk 0:00:08]}
51... Qd5 {[%clk 0:00:23.9]} 52. Bf6 {[%clk 0:00:07.9]} 52... Kb7 {[%clk
0:00:24.9]} 53. Qh6 {[%clk 0:00:06.1]} 53... Nd7 {[%clk 0:00:25.7]} 54. Qg7
{[%clk 0:00:06.3]} 54... Nxf6 {[%clk 0:00:26.2]} 55. exf6 {[%clk 0:00:05.2]}
55... e5 {[%clk 0:00:27.4]} 56. Qf8 {[%clk 0:00:05.1]} 56... Qd7 {[%clk
0:00:27.1]} 57. Qe7 {[%clk 0:00:04.7]} 57... Kc7 {[%clk 0:00:28.2]} 58. Qxe5+
{[%clk 0:00:04.5]} 58... Qd6 {[%clk 0:00:29.6]} 59. Qxd6+ {[%clk 0:00:02.8]}
59... Kxd6 {[%clk 0:00:31.5]} 60. Kg3 {[%clk 0:00:03.3]} 60... a4 {[%clk
0:00:32.2]} 61. Kg4 {[%clk 0:00:04.1]} 61... a3 {[%clk 0:00:33.5]} 62. Kg5
{[%clk 0:00:05.5]} 62... a2 {[%clk 0:00:34.7]} 63. g4 {[%clk 0:00:07.4]} 63...
a1=Q {[%clk 0:00:35.7]} 64. h4 {[%clk 0:00:09.3]} 64... Qe5+ {[%clk 0:00:36]}
65. Kh6 {[%clk 0:00:11.2]} 65... Qxf6 {[%clk 0:00:37.2]} 66. h5 {[%clk 0:00:12]}
66... g5+ {[%clk 0:00:37.8]} 0

[Event "Open Nuevo Centro. Jornada 1"]
[Site "Chess.com"]
[Date "2020.06.19"]
[Round "8"]
[White "Beneyto de Ramon, Guillermo"]
[Black "Deusa Ballesteros, Lucas "]
[Result "0-1"]
[WhiteElo "1480"]
[BlackElo "1464"]
[TimeControl "180+2"]
[EndTime "12:05:03 PDT"]
[Termination "Victoria de facundillo2009 por tiempo"]

1. c4 {[%clk 0:03:01.8]} 1... e5 {[%clk 0:02:59.7]} 2. Nc3 {[%clk 0:03:02.9]}
2... Nc6 {[%clk 0:03:00.4]} 3. g3 {[%clk 0:03:04]} 3... f5 {[%clk 0:03:01.4]} 4.
Bg2 {[%clk 0:03:04.9]} 4... Nf6 {[%clk 0:03:01.3]} 5. d3 {[%clk 0:03:06.2]} 5...
Bb4 {[%clk 0:03:00.7]} 6. Bg5 {[%clk 0:03:06.7]} 6... Bxc3+ {[%clk 0:03:00.7]}
7. bxc3 {[%clk 0:03:07.7]} 7... h6 {[%clk 0:03:01.5]} 8. Bd2 {[%clk 0:03:06]}
8... O-O {[%clk 0:03:00.9]} 9. Nf3 {[%clk 0:03:06.5]} 9... d6 {[%clk 0:02:53.5]}
10. O-O {[%clk 0:03:06.9]} 10... g5 {[%clk 0:02:51]} 11. Nxg5 {[%clk 0:03:05.4]}
11... hxg5 {[%clk 0:02:50.5]} 12. Bxg5 {[%clk 0:03:07.3]} 12... Bd7 {[%clk
0:02:43.1]} 13. Qd2 {[%clk 0:03:08]} 13... Qe7 {[%clk 0:02:41]} 14. Bh6 {[%clk
0:03:07.2]} 14... Qh7 {[%clk 0:02:27.5]} 15. Bf3 {[%clk 0:03:00.6]} 15... Qg6
{[%clk 0:02:19.8]} 16. Bxf8 {[%clk 0:02:49.3]} 16... Rxf8 {[%clk 0:02:21.7]} 17.
h4 {[%clk 0:02:49.3]} 17... e4 {[%clk 0:02:15.8]} 18. Bg2 {[%clk 0:02:46.1]}
18... exd3 {[%clk 0:02:03.2]} 19. exd3 {[%clk 0:02:46.6]} 19... Nh5 {[%clk
0:01:56.4]} 20. Bd5+ {[%clk 0:02:42.6]} 20... Kh8 {[%clk 0:01:52.4]} 21. Rfe1
{[%clk 0:02:22.7]} 21... f4 {[%clk 0:01:45.1]} 22. Rab1 {[%clk 0:01:41.9]} 22...
fxg3 {[%clk 0:01:32.5]} 23. fxg3 {[%clk 0:01:42.3]} 23... Qxg3+ {[%clk
0:01:17.2]} 24. Bg2 {[%clk 0:01:32.6]} 24... Nf4 {[%clk 0:00:53.7]} 25. Re3
{[%clk 0:01:15.2]} 25... Qxg2+ {[%clk 0:00:53.9]} 26. Qxg2 {[%clk 0:01:14.7]}
26... Nxg2 {[%clk 0:00:55.8]} 27. Kxg2 {[%clk 0:01:15.2]} 27... b6 {[%clk
0:00:55.2]} 28. Rf1 {[%clk 0:01:14.8]} 28... Rxf1 {[%clk 0:00:51.5]} 29. Kxf1
{[%clk 0:01:16.7]} 29... Ne5 {[%clk 0:00:52.4]} 30. Ke2 {[%clk 0:01:08.4]} 30...
Bf5 {[%clk 0:00:44.9]} 31. Kd2 {[%clk 0:01:03.1]} 31... Kh7 {[%clk 0:00:41]} 32.
Rg3 {[%clk 0:00:57.8]} 32... Kh6 {[%clk 0:00:35.2]} 33. Ke3 {[%clk 0:00:54.7]}
33... a5 {[%clk 0:00:23.2]} 34. Kd2 {[%clk 0:00:48.6]} 34... a4 {[%clk
0:00:13.5]} 35. a3 {[%clk 0:00:49.3]} 35... Bg6 {[%clk 0:00:10]} 36. Ke2 {[%clk
0:00:39.8]} 36... Kh5 {[%clk 0:00:10.5]} 37. Rg5+ {[%clk 0:00:31.3]} 37... Kxh4
{[%clk 0:00:11.3]} 38. Rg2 {[%clk 0:00:19.3]} 38... Bxd3+ {[%clk 0:00:10.5]} 39.
Kd2 {[%clk 0:00:20.7]} 39... Bxc4 {[%clk 0:00:11.5]} 40. Rg7 {[%clk 0:00:19.2]}
40... Bb3 {[%clk 0:00:11]} 41. Rxc7 {[%clk 0:00:16.8]} 41... Nc4+ {[%clk
0:00:11.4]} 42. Kd3 {[%clk 0:00:16.8]} 42... Nxa3 {[%clk 0:00:11.8]} 43. Rc6
{[%clk 0:00:16.9]} 43... b5 {[%clk 0:00:09.2]} 44. Rxd6 {[%clk 0:00:17.2]} 44...
Bc4+ {[%clk 0:00:10.3]} 45. Kd2 {[%clk 0:00:15.9]} 45... Bb3 {[%clk 0:00:11.1]}
46. Rd4+ {[%clk 0:00:14]} 46... Kg5 {[%clk 0:00:11.5]} 47. Re4 {[%clk 0:00:13]}
47... Nc4+ {[%clk 0:00:10.6]} 48. Kc1 {[%clk 0:00:07.8]} 48... a3 {[%clk
0:00:10.5]} 49. Re2 {[%clk 0:00:04.3]} 49... a2 {[%clk 0:00:10]} 50. Rxa2 {[%clk
0:00:04.9]} 50... Bxa2 {[%clk 0:00:10.9]} 51. Kc2 {[%clk 0:00:04.8]} 51... Kf4
{[%clk 0:00:10.4]} 52. Kd3 {[%clk 0:00:04.8]} 52... Ne5+ {[%clk 0:00:09.3]} 53.
Kd4 {[%clk 0:00:05.5]} 53... Bc4 {[%clk 0:00:08.9]} 54. Kc5 {[%clk 0:00:03.4]}
54... Ke3 {[%clk 0:00:10.2]} 55. Kb4 {[%clk 0:00:02.2]} 55... Nc6+ {[%clk
0:00:11.7]} 0

[Event "Open Nuevo Centro. Jornada 1"]
[Site "Chess.com"]
[Date "2020.06.19"]
[Round "8"]
[White "Romero Barkouk, Rayan "]
[Black "Gimenez Saiz, Jose Raul"]
[Result "0-1"]
[WhiteElo "1180"]
[BlackElo "1536"]
[TimeControl "180+2"]
[EndTime "12:05:21 PDT"]
[Termination "Victoria de rango013 por abandono"]

1. d4 {[%clk 0:03:01.9]} 1... Nf6 {[%clk 0:02:56.9]} 2. Nc3 {[%clk 0:02:59]}
2... d5 {[%clk 0:02:52.2]} 3. Nf3 {[%clk 0:02:58.5]} 3... Bf5 {[%clk 0:02:47.4]}
4. Bg5 {[%clk 0:02:57]} 4... e6 {[%clk 0:02:46.7]} 5. e3 {[%clk 0:02:55.8]} 5...
Be7 {[%clk 0:02:43.5]} 6. Bxf6 {[%clk 0:02:52.9]} 6... Bxf6 {[%clk 0:02:41]} 7.
Bd3 {[%clk 0:02:49.6]} 7... Bxd3 {[%clk 0:02:40.6]} 8. Qxd3 {[%clk 0:02:49.1]}
8... a6 {[%clk 0:02:42.1]} 9. O-O {[%clk 0:02:43.3]} 9... O-O {[%clk 0:02:29.1]}
10. e4 {[%clk 0:02:42.8]} 10... dxe4 {[%clk 0:02:22.3]} 11. Nxe4 {[%clk
0:02:42.9]} 11... Nc6 {[%clk 0:02:15.4]} 12. Nxf6+ {[%clk 0:02:40.3]} 12... Qxf6
{[%clk 0:02:13.3]} 13. Qe4 {[%clk 0:02:36.1]} 13... Rad8 {[%clk 0:02:06.5]} 14.
Qh4 {[%clk 0:02:22.6]} 14... Qxh4 {[%clk 0:01:56.6]} 15. Nxh4 {[%clk 0:02:20.4]}
15... Rxd4 {[%clk 0:01:56]} 16. Nf3 {[%clk 0:02:16.9]} 16... Rd7 {[%clk
0:01:49.3]} 17. Rad1 {[%clk 0:02:12.9]} 17... Rfd8 {[%clk 0:01:46.1]} 18. Rxd7
{[%clk 0:02:02.8]} 18... Rxd7 {[%clk 0:01:45.8]} 19. b3 {[%clk 0:01:54.5]} 19...
Kf8 {[%clk 0:01:41.8]} 20. a4 {[%clk 0:01:47.3]} 20... Ke7 {[%clk 0:01:38.5]}
21. Re1 {[%clk 0:01:45.5]} 21... h6 {[%clk 0:01:28.2]} 22. h3 {[%clk 0:01:36]}
22... f6 {[%clk 0:01:06.7]} 23. Nh4 {[%clk 0:01:31.6]} 23... Kf7 {[%clk
0:01:03.3]} 24. Kh2 {[%clk 0:01:29.3]} 24... Ne5 {[%clk 0:00:57.6]} 25. Kg1
{[%clk 0:01:27]} 25... g5 {[%clk 0:00:53.5]} 26. Nf3 {[%clk 0:01:25]} 26...
Nxf3+ {[%clk 0:00:49.1]} 27. gxf3 {[%clk 0:01:22.7]} 27... Rd2 {[%clk
0:00:49.7]} 28. c4 {[%clk 0:01:15.8]} 28... Rd3 {[%clk 0:00:44]} 29. Rb1 {[%clk
0:01:13.9]} 29... Rxf3 {[%clk 0:00:42.3]} 30. b4 {[%clk 0:01:08.3]} 30... Rxh3
{[%clk 0:00:40.3]} 31. Rd1 {[%clk 0:01:05.2]} 31... Ke7 {[%clk 0:00:39.2]} 32.
Kg2 {[%clk 0:01:00]} 32... Ra3 {[%clk 0:00:37.8]} 33. a5 {[%clk 0:00:58.3]}
33... Rb3 {[%clk 0:00:38.1]} 34. b5 {[%clk 0:00:57.8]} 34... axb5 {[%clk
0:00:38.9]} 35. cxb5 {[%clk 0:00:57.8]} 35... Rxb5 {[%clk 0:00:40.3]} 36. a6
{[%clk 0:00:55]} 36... bxa6 {[%clk 0:00:37.7]} 37. Rc1 {[%clk 0:00:55.2]} 37...
c5 {[%clk 0:00:39.2]} 38. Kf3 {[%clk 0:00:53.9]} 38... Kd6 {[%clk 0:00:22.9]}
39. Ke4 {[%clk 0:00:53]} 39... f5+ {[%clk 0:00:21]} 40. Kd3 {[%clk 0:00:50.5]}
40... e5 {[%clk 0:00:21.6]} 41. f3 {[%clk 0:00:49.2]} 41... Kd5 {[%clk
0:00:21.3]} 42. Rd1 {[%clk 0:00:45.3]} 42... Rb3+ {[%clk 0:00:21]} 43. Kc2+
{[%clk 0:00:45.1]} 43... Kc4 {[%clk 0:00:22]} 44. Rc1 {[%clk 0:00:43.3]} 44...
Kb4 {[%clk 0:00:22.6]} 45. Rd1 {[%clk 0:00:40]} 45... c4 {[%clk 0:00:22.5]} 46.
Rd5 {[%clk 0:00:38.8]} 46... Rxf3 {[%clk 0:00:22.7]} 47. Rxe5 {[%clk 0:00:35.5]}
47... Rf2+ {[%clk 0:00:23.4]} 48. Kd1 {[%clk 0:00:33.7]} 48... Kc3 {[%clk
0:00:24]} 49. Rd5 {[%clk 0:00:30.5]} 49... h5 {[%clk 0:00:21.8]} 50. Ke1 {[%clk
0:00:29.3]} 50... Rf3 {[%clk 0:00:20.3]} 51. Ke2 {[%clk 0:00:28.3]} 51... g4
{[%clk 0:00:21.6]} 52. Ra5 {[%clk 0:00:26.4]} 52... h4 {[%clk 0:00:20.2]} 53.
Rxa6 {[%clk 0:00:25.3]} 53... h3 {[%clk 0:00:19.2]} 54. Rh6 {[%clk 0:00:25.1]}
54... Kc2 {[%clk 0:00:17.3]} 55. Rh5 {[%clk 0:00:20.9]} 55... c3 {[%clk
0:00:17.2]} 56. Rh6 {[%clk 0:00:19.7]} 56... Kc1 {[%clk 0:00:17.7]} 57. Rc6
{[%clk 0:00:17]} 57... c2 {[%clk 0:00:18.6]} 0